Workbook

Sheet Informacija (hidden)
A1: 8
A2: Ovo je aplikacija za izradu GANTT-ograma, dijagrama napredovanja radova tekućeg projekta.
A3: Da bi ste kvalitetno izradili dijagram neophodno je da upišete pozicije iz ponude u kolonu B-B počev od reda broj 10. Zatim, unesite datume početka i završetka pojedinih pozicija u kolone J-J i M-M.
A4: Ispred svakog opisa pozicije u koloni A-A obojite ćeliju bojom linije dijagrama pozicije.
A5: Po unošenju podataka aktivirajte dugme "G". Pratite uputstva i unosite tražene podatke. Aktivirajte dugme "D". Prijatan rad.
A7: Ovo je aplikacija za izradu građevinske knjige namenjena izvođačima građevinskih radova za brzu i uspešnu izradu gradilišne dokumentacije.
A8: Na početku pripremite izvor podataka - ponudu, koju treba obraditi na način prikazan u listu ponuda. Kada ste pripremili ponudu aktivirajte dugme "imenuj bazu". Sada možete početi sa izradom listova građevinske knjige. Klikom na dugme "knjiga" aktiviraće se list knjiga.
A9: Selektujte ćeliju "c15" i aktivirajte strelicu sa desne strane. Pojaviće se lista sa pozicijama iz ponude. Ako izaberete poziciju iz liste, sva polja u naslovu biće popunjena potrebnim podacima za odgovarajuću poziciju.
A10: Sada možete upisivati podatke o izvršenim radovima - dokaznicu. Tekstualni (opisni) deo dokaznice upisujte u kolonu "b:b", a numerički (račun) upisujte u kolonu "h-h" počev od reda 20. Po upisu dokaznice aktivirajte dugme "izračunaj" i biće izvršen proračun dokaznice, upisan u kolonu "j-j" i sumiran u kolonu "k-k". Biće označena ćelija za potpis odgovornog izvođača radova.
A11: Aktivirajte dugme "potpis". Aktiviranjem p. Programa "kopija" izvršiće se kopiranje lista "knjiga" sa oznakom "gk_(oznaka pozicije). U ovom listu možete vršiti dopunu dokaznice, a list "knjiga" koristiti za obradu drugih pozicija.
A12: Štampanje lista može se vršiti parcijalno. Na primer, može se odštampati dokaznica za mesec januar, zatim na istom listu (posle overe lista) februar. . . i tako redom.
A13: (Ako u listu "Ponuda", ćeliji "A1" upišete "ne" ovaj dijalog se neće pojavljivati.)

Sheet Password (hidden)
H1: 0
H10: 2012-12-31

Sheet Faktura1 (hidden)
A1: ЛОГО | B1: ЈВП "Србијаводе", ВПЦ "Сава-Дунав"
B2: 11070 Нови Београд, Бродарска 3
B3: Тел: 011 / _______; Факс: 011 / _______
B4: Број:________________ | D4: Датум: ___.___._______
D8: РАЧУН БРОЈ | E8: =+prsit -> 1
A10: ="За извршене услуге стручног надзора над извођењем радова "&MID(A30,47,LEN(A30)-47) -> За извршене услуге стручног надзора над извођењем радова по Уговору број ______ од ___. ___. _______.
A15: Наручилац услуге: | B15: ЈВП "Србијаводе", ВПЦ "Сава-Дунав", 11070 Нови Београд, Бродарска 3
A16: Текући рачун: | B16: 245-0215062201295-85 "Агробанка"
A17: Матични број: | B17: 17117106; PIB 100283824; PEPDV 135143132; ШифДел 03010
A18: Уговор број: | B18: 2504 од | C18: 19.09.2006. | D18: Анекс број: | E18: 960 од | F18: 27.03.2007.
A21: Извршилац услуге: | B21: ЈВП "Србијаводе", ВПЦ "Сава-Дунав", 11070 Нови Београд, Бродарска 3
A22: Текући рачун: | B22: 245-0215062201295-85 "Агробанка"
A23: Матични број: | B23: 17117106; PIB 100283824; PEPDV 135143132; ШифДел 03010
A24: Уговор број: | B24: 2504 од | C24: 19.09.2006. | D24: Анекс број: | E24: 960 од | F24: 27.03.2007.
A30: Уговорена вредност радова са Извођачем радова по Уговору број ______ од ___. ___. _______.:
H31: =+IF(F31>0," дин.","") -> 
A33: Уговорена вредност услуге (са ПДВ): | H33: =+IF(F33>0," дин.","") ->  | J33: =+F33/F31 -> 
A35: Укупна вредност извршених радова (са ПДВ): | H35: =+IF(F35>0," дин.","") -> 
A37: Проценат извршења: | D37: =IF(ISERROR(F35/F31),0,F35/F31) -> 0 | H37: =+IF(F37>0," дин.","") -> 
A39: Вредност извршене услуге (без ПДВ): | F39: =+D37*F33 -> 0 | H39: =+IF(F39>0," дин.","") -> 
A43: Основица за обрачун пореза на додату вредност: | F43: =+F39 -> 0 | H43: =+IF(F43>0," дин.","") -> 
A45: Порез на додату вредност: | C45: 0.18 | F45: =+F43*0.18 -> 0 | H45: =+IF(F45>0," дин.","") -> 
A47: За наплату: | F47: =+F43+F45 -> 0 | H47: =+IF(F47>0," дин.","") -> 
A50: =SlovimaPC($F$47) -> Словима: (нула динара)
A53: Прилог: | B53: =+Obracun!C2 -> ОБРАЧУН УЗ ПРИВРЕМЕНУ СИТУАЦИЈУ БРОЈ 1
A58: Извршилац услуге: | F58: Наручилац услуге:
C59: (м.п.) | E59: (м.п.)
A60: (директор) | F60: (директор)
A63: РАДОВИ СУ ИЗВРШЕНИ И МОГУ СЕ ИСПЛАТИТИ
A64: НА ТЕРЕТ СРЕДСТАВА редовног одржавања
A65: система за одводњавање
D66: ТВРДИ И ОВЕРАВА
A67: ...........................2004. год. | D67: РУКОВОДИЛАЦ СЕКТОРА
D68: .................................................

Sheet ViseManje (hidden)
B2: =Situacija!A11 -> CEVAST PROPUS Ø1000 NA KANALU K12, KM 2+350 | E2: УГОВОРЕНО | G2: ="ИЗВРШЕНО до "&TEXT(Situacija!E12,"dd.mm.yy") -> ИЗВРШЕНО до 31.01.10 | I2: ВИШЕ ИЗВРШЕНО | K2: МАЊЕ ИЗВРШЕНО
A4: Р.Бр. | B4: Опис позиције | C4: Ј.м. | D4: Ј.цена | E4: Количина | F4: Износ | G4: Количина | H4: Износ | I4: Количина | J4: Износ | K4: Количина | L4: Износ
A5: *
A6: *
B7: I. ZEMLJANI RADOVI
A8: 1. | B8: Mašinski iskop zemlje za izradu propusta. Obračun po m3. (0.60+5.40)*0.5*1.60*6.00= | C8: m3 | D8: 327 | E8: 28 | F8: =D8*E8 -> 9156 | G8: 28.8 | H8: 9417.6 | I8: 0.8 | J8: 261.6
D9: 0 | E9: 0
A10: 2.a | B10: Ručni iskop u zemljištu 3-kategorije za podlogu ispod cevi i krilne zidove širine 0.60-1.00 m sa odbacivanjem zemlje najmanje 1.00 m od ivice kanala ili rova. Obračun po m3 otkopane zemlje. A. Na dubini od 0-2 m u suvom (1.90+1.00)*0.5*0.80*0.60*2*2+(2.10+1.05)*0.5*0.80*0.70*2*2+(1.35+1.20)*0.5*0.80*0.20*2*2=2.74+3.53+0.82= | C10: m3 | D10: 444 | E10: 7 | F10: =D10*E10 -> 3108 | K10: 7 | L10: 3108
D11: 0 | E11: 0
A12: 2.b | B12: Ručni iskop u zemljištu 3-kategorije za podlogu ispod cevi i krilne zidove širine 0.60-1.00 m sa odbacivanjem zemlje najmanje 1.00 m od ivice kanala ili rova. Obračun po m3 otkopane zemlje. B. Na dubini od 0-2 m u mokrom (1.00+1.30)*0.5*0.20*6.00+0.90*0.20*0.5*6.00*2+(1.75+1.30)*0.5*0.80*0.50*2*2= 1.38+1.08+2.44= | C12: m3 | D12: 604 | E12: 4 | F12: =D12*E12 -> 2416 | K12: 4 | L12: 2416
D13: 0 | E13: 0
A14: 2.c | B14: Ručni iskop u zemljištu 3-kategorije za podlogu ispod cevi i krilne zidove širine 0.60-1.00 m sa odbacivanjem zemlje najmanje 1.00 m od ivice kanala ili rova. Obračun po m3 otkopane zemlje. C. Na dubini od 2-4 m u mokrom 2.50*0.50*0.50*2+1.00*0.20*5.00=1.25+1.00= | C14: m3 | D14: 785 | E14: 2 | F14: =D14*E14 -> 1570 | K14: 2 | L14: 1570
D15: 0 | E15: 0
A16: 3. | B16: Ručni iskop u širokom otkopu za izradu tucaničkog kolovoznog zastora u zemljištu 3-kategorije. Obračun po m3 otkopane zemlje. (1.00+1.60)*0.5*0.40*5.30*2= | C16: m3 | D16: 668 | E16: 5 | F16: =D16*E16 -> 3340 | K16: 5 | L16: 3340
D17: 0 | E17: 0
A18: 4. | B18: Nasipanje sa nabijanjem šljunkom prostor do polovine visine cevi. Obračun po m3. (1.00+1.80)*0.5*0.50*5.30-0.565*5.30=3.71-2.99= | C18: m3 | D18: 3846 | E18: 0
D19: 0 | E19: 0
A20: 5. | B20: Nasipanje sa nabijanjem materijalom iz iskopa prostor oko i iznad cevi. oko krilnih zidova i nasipanje prilaznih rampi. Obračun po m3. (1.75+1.20)*0.5*0.45*0.70*2*2+(2.10+1.05)*0.5*0.45*0.70*2*2+(1.90+1.00)*0.5*0.45*0.60*2*2+(1.80+4.80)* 0.5*1.10* 5.30- 0.565*5.30+0.20*4.00*0.5*5.30*2 = 1.86+1.98+1.57+19.24-2.99+4 | C20: m3 | D20: 288 | E20: 25 | F20: =D20*E20 -> 7200 | K20: 25 | L20: 7200
D21: 0 | E21: 0
A22: 6. | B22: Mašinska izrada pregrade (zagata) od nabijene zemlje u profilu kanala. Obračun po m3. (0.60+3.60)*0.5*1.00*2.50*2=10.50 | C22: m3 | D22: 301 | E22: 10 | F22: =D22*E22 -> 3010 | K22: 10 | L22: 3010
D23: 0 | E23: 0
A24: 7. | B24: Mašinsko uklanjanje pregrade (zagata) od nabijene zemlje iz profilu kanala. Obračun po m3. (0.60+3.60)*0.5*1.00*2.50*2=10.50 | C24: m3 | D24: 325 | E24: 10 | F24: =D24*E24 -> 3250 | K24: 10 | L24: 3250
B25: I. SVEGA ZEMLJNANI RADOVI | C25: din | D25: 0 | E25: 0 | F25: =SUM(F8:F24) -> 33050 | H25: 9417.6 | L25: 23632.4
D26: 0 | E26: 0
B27: II. TESARSKI RADOVI | D27: 0 | E27: 0
A28: 8. | B28: Izrada. montaža i demontaža dvostrane oplate za krilne zidove. Obračun po m2. (1.00+6.00)*0.5*2.00*2+4.50*0.70*2+6.30*0.70*2+ 8.00*0.80*2+8.00*0.20*2+0.25*0.35*4= 14.00+6.30+8.82+12.80+3.20+0.35= | C28: m2 | D28: 1205 | E28: 45 | F28: =D28*E28 -> 54225 | K28: 45 | L28: 54225
B29: II. SVEGA TESARSKI RADOVI | C29: din | D29: 0 | E29: 0 | F29: =SUM(F28) -> 54225 | H29: 0 | L29: 54225
D30: 0 | E30: 0
B31: III. BETONSKI RADOVI | D31: 0 | E31: 0
A32: 9. | B32: Nearmiran beton MB-10 podloga za polaganje cevi. Obračun po m3. 1.00*0.20*5.00= | C32: m3 | D32: 8403 | E32: 1 | F32: =D32*E32 -> 8403 | K32: 1 | L32: 8403
D33: 0 | E33: 0
A34: 10. | B34: Armiran beton MB-30 za izradu krilnih zidova obračun po m3. 2.50*0.50*0.50*2+4.50*0.35*0.70*2+6.30*0.35*0.70*2+ 8.00*0.35*0.80*2-1.13*0.35*2=1.25+2.20+3.09+4.48-0.79= | C34: m3 | D34: 9628 | E34: 10 | F34: =D34*E34 -> 96280 | K34: 10 | L34: 96280
D35: 0 | E35: 0
A36: 11. | B36: Nabavka. transport i montaža armirano betonskih cevi Ø1000 mm sa zalivanjem spojnica masom za zalivanje ili cementnim malterom 1:3. | C36: m1 | D36: 14176 | E36: 6 | F36: =D36*E36 -> 85056 | K36: 6 | L36: 85056
B37: III. SVEGA BETONSKI RADOVI | C37: din | D37: 0 | E37: 0 | F37: =SUM(F32:F36) -> 189739 | H37: 0 | L37: 189739
D38: 0 | E38: 0
B39: IV. ARMIRAČKI RADOVI | D39: 0 | E39: 0
A40: 12. | B40: Nabavka. transport. sečenje. ispravljanje. savijanje. postavljane i vezivanje armature prema planu i specifikaciji armature iz projekta. Obračun po kg. | C40: kg | D40: 97 | E40: 65 | F40: =D40*E40 -> 6305 | K40: 65 | L40: 6305
D41: 0 | E41: 0
A42: 13. | B42: Nabavka. transport. sečenje. postavljanje i vezivanje mrežaste armature Q335 Ø8/Ø8 mm prema planu i specifikaciji armature iz projekta. Obračun po kg. | C42: kg | D42: 111 | E42: 192 | F42: =D42*E42 -> 21312 | K42: 192 | L42: 21312
B43: IV. SVEGA ARMIRAČKI RADOVI | C43: din | D43: 0 | E43: 0 | F43: =SUM(F40:F42) -> 27617 | H43: 0 | L43: 27617
D44: 0 | E44: 0
B45: V. RADOVI OD KAMENA | D45: 0 | E45: 0
A46: 14. | B46: Izrada tucaničkog kolovoza ( zastora) debljine 25 cm na podlozi od šljunka debljine 15 cm. Obračun po m2. 8.50 * 5.30 = | C46: m2 | D46: 1642 | E46: 45 | F46: =D46*E46 -> 73890 | K46: 45 | L46: 73890
B47: V. SVEGA RADOVI OD KAMENA | C47: din | D47: 0 | E47: 0 | F47: =SUM(F46) -> 73890 | H47: 0 | L47: 73890
D48: 0 | E48: 0
B49: VI. OSTALI RADOVI | D49: 0 | E49: 0
A50: 15. | B50: Crpljenje vode u toku izvođenja radova motornom pumpom. Obračun po času. 2 dana * 8 čas = | C50: čas | D50: 1575 | E50: 16 | F50: =D50*E50 -> 25200 | K50: 16 | L50: 25200
B51: VI. SVEGA OSTALI RADOVI | C51: din | F51: =SUM(F50:F50) -> 25200 | H51: 0 | L51: 25200
B53: R E K A P I T U L A C I J A
B56: I. ZEMLJANI RADOVI | C56: din | F56: =F25 -> 33050 | H56: 9417.6 | L56: 23632.4
B57: II. TESARSKI RADOVI | C57: din | F57: =F29 -> 54225 | H57: 0 | L57: 54225
B58: III. BETONSKI RADOVI | C58: din | F58: =F37 -> 189739 | H58: 0 | L58: 189739
B59: IV. ARMIRAČKI RADOVI | C59: din | F59: =F43 -> 27617 | H59: 0 | L59: 27617
B60: V. RADOVI OD KAMENA | C60: din | F60: =F47 -> 73890 | H60: 0 | L60: 73890
B61: VI. OSTALI RADOVI | C61: din | F61: =F51 -> 25200 | H61: 0 | L61: 25200
B62: UKUPNO | C62: din | F62: =SUM(F56:F61) -> 403721 | H62: 9417.6 | L62: 394303.4
B63: PDV 18% | C63: din | F63: =F62*0.18 -> 72669.78 | H63: 1695.168 | L63: 70974.612
B64: UKUPNO sa PDV | C64: din | F64: =SUM(F62:F63) -> 476390.78 | H64: 11112.768 | L64: 465278.012

Sheet MenuAnalizCell (hidden)
A1: MenuLevel | B1: Caption | C1: Position/Macro | D1: Divider | E1: FaceID
A2: 1 | B2: KNIJGA | C2: 21 | E2: 80
A3: 2 | B3: Skica | C3: frmSkice | E3: 218
A4: 2 | B4: Opis | C4: frmNacrti | E4: 119
A5: 2 | B5: Polinom | C5: racunica | E5: 3272
A6: 2 | B6: Dokaznica | C6: IzracunajDokaznicu | E6: 50
A7: 2 | B7: Obriši Selektovano | C7: BrisiBurdur | E7: 2060
A8: 2 | B8: Potpis | C8: potpisi | E8: 593
A9: 2 | B9: Više - Manje | C9: IzvrsenoVM | E9: 970
A10: 2 | B10: U Situaciju | C10: IzvrseneKolicine | E10: 278
A11: 2 | B11: Štampa | C11: srFont | D11: TRUE | E11: 4
A12: 2 | B12: Učitaj Ponudu | C12: NovaPon | E12: 1561
A13: 2 | B13: Insertuj Tekst | C13: strInsert | E13: 705
A14: 2 | B14: Cena > < Količina | C14: ZameniKol | E14: 639
A15: 2 | B15: Burdura | C15: FormPon | D15: TRUE | E15: 203
A16: 2 | B16: Učitaj Logotip | C16: Logo | E16: 685
A17: 2 | B17: Sumiraj Količine | C17: SumKol | D17: TRUE | E17: 374

Sheet Faktura (hidden)
B1: FIRMA
B2: Adresa
B3: =Situacija!B3 -> Тел:
A5: =Situacija!$A$11 -> CEVAST PROPUS Ø1000 NA KANALU K12, KM 2+350
E7: Наручилац
E8: Место
E9: Адреса
A10: Датум рачуна: | C10: 2009-08-07
A11: Датум промета: | C11: 2009-08-14
A13: РАЧУН број: | B13: =+prsit -> 1 | C13: =Situacija!E9 -> ПРИВРЕМЕНА СИТУАЦИЈА БРОЈ 1
A16: A | B16: A1 | C16: Вредност радова по Уговору: | G16: =Situacija!F31 -> 476390.78
B17: A2 | C17: Пореска основица: | G17: =+G16/1.18 -> 403721
B18: A3 | C18: Вредност ПДВ по Уговору: | G18: =+G17*0.18 -> 72669.78
B19: A4 | C19: Укупна вредност по Уговору: | G19: =SUM(G17:G18) -> 476390.78
A21: B | B21: B1 | C21: Укупна вредност изведених радова: | G21: =Situacija!F35 -> 11112.768
B22: B2 | C22: Пореска основица: | G22: =+G21/1.18 -> 9417.6
B23: B3 | C23: Вредност ПДВ: | G23: =+G22*0.18 -> 1695.168
B24: B4 | C24: Укупна вредност са ПДВ: | G24: =SUM(G22:G23) -> 11112.768
A26: C | B26: C1 | C26: Вредност радова по претходној ситуацији: | G26: =Situacija!F37*1.18 -> 0
B27: C2 | C27: Пореска основица по претходној ситуацији: | G27: =+G26/1.18 -> 0
B28: C3 | C28: Вредност ПДВ по претходној ситуацији: | G28: =+G27*0.18 -> 0
B29: C4 | C29: Укупна вредност радова по претходној ситуацији: | G29: =SUM(G27:G28) -> 0
A31: D | B31: D1 | C31: Вредност радова по овој ситуацији: | G31: =+G21-G26 -> 11112.768
B32: D2 | C32: Пореска основица по овој ситуацији: | G32: =+G22-G27 -> 9417.6
B33: D3 | C33: Вредност ПДВ по овој ситуацији: | G33: 1695.168
B34: D4 | C34: Укупна вредност по овој ситуацији: | G34: 11112.768
A36: E | B36: E1 | C36: За плаћање по ситуацији: | G36: =+G37*1.18 -> 11112.768
B37: E2 | C37: Пореска основица: | G37: =Situacija!F52 -> 9417.6
B38: E3 | C38: Вредност ПДВ: | G38: =+G37*0.18 -> 1695.168
B39: E4 | C39: Укупна за наплату са ПДВ: | G39: =SUM(G37:G38) -> 11112.768
A41: =SlovimaPC(G39) -> Словима: (једанаестхиљадастотинудванаест динара и 77/100)
A44: За наручиоца радова | G44: За Извођача радова
A45: ___________________ | G45: _________________

Sheet Prva
H5: GRAĐEVINSKA KNJIGA
K9: =IF($C$13="","",VLOOKUP($C$13,baza1,6,FALSE)) -> 
H25: SITUACIJA
GR198: 2

Sheet Obracun (hidden)
A1: 1 | B1: 2 | C1: 3 | D1: 4 | E1: 5 | F1: 6 | G1: 7 | H1: 8 | I1: 9 | J1: 2010-01-04 | K1: 11 | L1: 12 | M1: 13 | N1: 14 | O1: 15 | P1: 16 | Q1: 17 | R1: 18 | S1: 19 | T1: 20 | U1: 21 | W1: ОБРАЧУН УЗ ПРИВРЕМЕНУ СИТУАЦИЈУ БРОЈ
C2: =IF(HLOOKUP(prsit,period,3,FALSE)="ОБРАЧУН УЗ ПРИВРЕМЕНУ СИТУАЦИЈУ БРОЈ",HLOOKUP(prsit,period,3,FALSE)&" "&prsit,HLOOKUP(prsit,period,3,FALSE)) -> ОБРАЧУН УЗ ПРИВРЕМЕНУ СИТУАЦИЈУ БРОЈ 1 | J2: 1 | K2: 2 | L2: 3 | M2: 4 | N2: 5 | O2: 6 | P2: 7 | Q2: 8 | R2: 9 | S2: 10 | T2: 11 | U2: 12 | W2: ПЕРИОДИЧНИ ОБРАЧУН
D3: 1 | J3: 2010-01-31 | W3: ОКОНЧАНИ ОБРАЧУН
A4: =Ponuda!C1 -> CEVAST PROPUS Ø1000 NA KANALU K12, KM 2+350 | J4: ОБРАЧУН УЗ ПРИВРЕМЕНУ СИТУАЦИЈУ БРОЈ | K4: ОБРАЧУН УЗ ПРИВРЕМЕНУ СИТУАЦИЈУ БРОЈ | L4: ОБРАЧУН УЗ ПРИВРЕМЕНУ СИТУАЦИЈУ БРОЈ | M4: ОБРАЧУН УЗ ПРИВРЕМЕНУ СИТУАЦИЈУ БРОЈ | N4: ОБРАЧУН УЗ ПРИВРЕМЕНУ СИТУАЦИЈУ БРОЈ | O4: ОБРАЧУН УЗ ПРИВРЕМЕНУ СИТУАЦИЈУ БРОЈ | P4: ОБРАЧУН УЗ ПРИВРЕМЕНУ СИТУАЦИЈУ БРОЈ | Q4: ОБРАЧУН УЗ ПРИВРЕМЕНУ СИТУАЦИЈУ БРОЈ | R4: ОБРАЧУН УЗ ПРИВРЕМЕНУ СИТУАЦИЈУ БРОЈ | S4: ОБРАЧУН УЗ ПРИВРЕМЕНУ СИТУАЦИЈУ БРОЈ | T4: ОБРАЧУН УЗ ПРИВРЕМЕНУ СИТУАЦИЈУ БРОЈ | U4: ОКОНЧАНИ ОБРАЧУН
A8: РБр | B8: Опис позиције | C8: Јмере | D8: Количина | E8: × | F8: Јцена | G8: = | H8: Износ | J8: Количина | K8: Количина | L8: Количина | M8: Количина | N8: Количина | O8: Количина | P8: Количина | Q8: Количина | R8: Количина | S8: Количина | T8: Количина | U8: Количина | X8: ukupno
A9: *
A10: *
B11: I. ZEMLJANI RADOVI
A12: 1. | B12: Mašinski iskop zemlje za izradu propusta. Obračun po m3. (0.60+5.40)*0.5*1.60*6.00= | C12: m3 | D12: 28.8 | F12: 327 | H12: 9417.6 | J12: 28.8
F13: 0
A14: 2.a | B14: Ručni iskop u zemljištu 3-kategorije za podlogu ispod cevi i krilne zidove širine 0.60-1.00 m sa odbacivanjem zemlje najmanje 1.00 m od ivice kanala ili rova. Obračun po m3 otkopane zemlje. A. Na dubini od 0-2 m u suvom (1.90+1.00)*0.5*0.80*0.60*2*2+(2.10+1.05)*0.5*0.80*0.70*2*2+(1.35+1.20)*0.5*0.80*0.20*2*2=2.74+3.53+0.82= | C14: m3 | F14: 444
F15: 0
A16: 2.b | B16: Ručni iskop u zemljištu 3-kategorije za podlogu ispod cevi i krilne zidove širine 0.60-1.00 m sa odbacivanjem zemlje najmanje 1.00 m od ivice kanala ili rova. Obračun po m3 otkopane zemlje. B. Na dubini od 0-2 m u mokrom (1.00+1.30)*0.5*0.20*6.00+0.90*0.20*0.5*6.00*2+(1.75+1.30)*0.5*0.80*0.50*2*2= 1.38+1.08+2.44= | C16: m3 | F16: 604
F17: 0
A18: 2.c | B18: Ručni iskop u zemljištu 3-kategorije za podlogu ispod cevi i krilne zidove širine 0.60-1.00 m sa odbacivanjem zemlje najmanje 1.00 m od ivice kanala ili rova. Obračun po m3 otkopane zemlje. C. Na dubini od 2-4 m u mokrom 2.50*0.50*0.50*2+1.00*0.20*5.00=1.25+1.00= | C18: m3 | F18: 785
F19: 0
A20: 3. | B20: Ručni iskop u širokom otkopu za izradu tucaničkog kolovoznog zastora u zemljištu 3-kategorije. Obračun po m3 otkopane zemlje. (1.00+1.60)*0.5*0.40*5.30*2= | C20: m3 | F20: 668
F21: 0
A22: 4. | B22: Nasipanje sa nabijanjem šljunkom prostor do polovine visine cevi. Obračun po m3. (1.00+1.80)*0.5*0.50*5.30-0.565*5.30=3.71-2.99= | C22: m3 | F22: 3846
F23: 0
A24: 5. | B24: Nasipanje sa nabijanjem materijalom iz iskopa prostor oko i iznad cevi. oko krilnih zidova i nasipanje prilaznih rampi. Obračun po m3. (1.75+1.20)*0.5*0.45*0.70*2*2+(2.10+1.05)*0.5*0.45*0.70*2*2+(1.90+1.00)*0.5*0.45*0.60*2*2+(1.80+4.80)* 0.5*1.10* 5.30- 0.565*5.30+0.20*4.00*0.5*5.30*2 = 1.86+1.98+1.57+19.24-2.99+4 | C24: m3 | F24: 288
F25: 0
A26: 6. | B26: Mašinska izrada pregrade (zagata) od nabijene zemlje u profilu kanala. Obračun po m3. (0.60+3.60)*0.5*1.00*2.50*2=10.50 | C26: m3 | F26: 301
F27: 0
A28: 7. | B28: Mašinsko uklanjanje pregrade (zagata) od nabijene zemlje iz profilu kanala. Obračun po m3. (0.60+3.60)*0.5*1.00*2.50*2=10.50 | C28: m3 | F28: 325
B29: I. SVEGA ZEMLJNANI RADOVI | C29: din | F29: 0 | H29: =SUM(H12:H28) -> 9417.6
F30: 0
B31: II. TESARSKI RADOVI | F31: 0
A32: 8. | B32: Izrada. montaža i demontaža dvostrane oplate za krilne zidove. Obračun po m2. (1.00+6.00)*0.5*2.00*2+4.50*0.70*2+6.30*0.70*2+ 8.00*0.80*2+8.00*0.20*2+0.25*0.35*4= 14.00+6.30+8.82+12.80+3.20+0.35= | C32: m2 | F32: 1205
B33: II. SVEGA TESARSKI RADOVI | C33: din | F33: 0 | H33: =SUM(H32) -> 0
F34: 0
B35: III. BETONSKI RADOVI | F35: 0
A36: 9. | B36: Nearmiran beton MB-10 podloga za polaganje cevi. Obračun po m3. 1.00*0.20*5.00= | C36: m3 | F36: 8403
F37: 0
A38: 10. | B38: Armiran beton MB-30 za izradu krilnih zidova obračun po m3. 2.50*0.50*0.50*2+4.50*0.35*0.70*2+6.30*0.35*0.70*2+ 8.00*0.35*0.80*2-1.13*0.35*2=1.25+2.20+3.09+4.48-0.79= | C38: m3 | F38: 9628
F39: 0
A40: 11. | B40: Nabavka. transport i montaža armirano betonskih cevi o1000 mm sa zalivanjem spojnica masom za zalivanje ili cementnim malterom 1:3. | C40: m1 | F40: 14176
B41: III. SVEGA BETONSKI RADOVI | C41: din | F41: 0 | H41: =SUM(H36:H40) -> 0
F42: 0
B43: IV. ARMIRAČKI RADOVI | F43: 0
A44: 12. | B44: Nabavka. transport. sečenje. ispravljanje. savijanje. postavljane i vezivanje armature prema planu i specifikaciji armature iz projekta. Obračun po kg. | C44: kg | F44: 97
F45: 0
A46: 13. | B46: Nabavka. transport. sečenje. postavljanje i vezivanje mrežaste armature Q335 Ø8/Ø8 mm prema planu i specifikaciji armature iz projekta. Obračun po kg. | C46: kg | F46: 111
B47: IV. SVEGA ARMIRAČKI RADOVI | C47: din | F47: 0 | H47: =SUM(H44:H46) -> 0
F48: 0
B49: V. RADOVI OD KAMENA | F49: 0
A50: 14. | B50: Izrada tucaničkog kolovoza ( zastora) debljine 25 cm na podlozi od šljunka debljine 15 cm. Obračun po m2. 8.50 * 5.30 = | C50: m2 | F50: 1642
B51: V. SVEGA RADOVI OD KAMENA | C51: din | F51: 0 | H51: =SUM(H50) -> 0
F52: 0
B53: VI. OSTALI RADOVI | F53: 0
A54: 15. | B54: Crpljenje vode u toku izvođenja radova motornom pumpom. Obračun po času. 2 dana * 8 čas = | C54: čas | F54: 1575
B55: VI. SVEGA OSTALI RADOVI | C55: din | H55: =SUM(H54:H54) -> 0
B57: R E K A P I T U L A C I J A
B60: I. ZEMLJANI RADOVI | C60: din | H60: =H29 -> 9417.6
B61: II. TESARSKI RADOVI | C61: din | H61: =H33 -> 0
B62: III. BETONSKI RADOVI | C62: din | H62: =H41 -> 0
B63: IV. ARMIRAČKI RADOVI | C63: din | H63: =H47 -> 0
B64: V. RADOVI OD KAMENA | C64: din | H64: =H51 -> 0
B65: VI. OSTALI RADOVI | C65: din | H65: =H55 -> 0
B66: UKUPNO | C66: din | H66: =SUM(H60:H65) -> 9417.6 | J66: 9417.6
B67: PDV 18% | C67: din | H67: =H66*0.18 -> 1695.168
B68: UKUPNO sa PDV | C68: din | H68: =SUM(H66:H67) -> 11112.768 | J68: 11112.768
B70: Одговорни извођач радова | I70: Надзорни орган
B71: ____________________ | I71: _________________

Sheet Situacija (hidden)
A1: ЛОГО | B1: ФИРМА
B2: Адреса
B3: Тел:
B4: Број:_________
B5: Датум: __.__.____
E9: =IF(oznaka="окончани обрачун","ОКОНЧАНА СИТУАЦИЈА",IF(oznaka="ПЕРИОДИЧНИ ОБРАЧУН","ОБРАЧУНСКА СИТУАЦИЈА","ПРИВРЕМЕНА СИТУАЦИЈА БРОЈ "&prsit)) -> ПРИВРЕМЕНА СИТУАЦИЈА БРОЈ 1
A11: =+Obracun!A4 -> CEVAST PROPUS Ø1000 NA KANALU K12, KM 2+350
D12: ="у периоду од "&TEXT(Obracun!J1,"dd.mm.yyyy."&" до") -> у периоду од 04.01.2010. до | E12: 2010-01-31 | F12: године.
A16: Наручилац: | B16: ЈВП "Србијаводе", ВПЦ "Сава-Дунав", 11070 Нови Београд, Бродарска 3
A17: Текући рачун: | B17: 245-0215062201295-85 "Агробанка"
A18: Матични број: | B18: 17117106; PIB SR100283824; PEPDV 135143132; ШифДел 03010
A19: Уговор број: | B19: 2504 од | C19: 19.09.2006. | D19: Анекс број: | E19: 960 од | F19: 27.03.2007.
A22: Извршилац: | B22: ФИРМА
A23: Текући рачун:
A24: Матични број:
A25: Уговор број:
A31: Укупно уговорена вредност радова (Уговор+Анекс): | F31: 476390.78 | H31: =+IF(F31>0," дин.","") -> дин.
A33: Укупна вредност извршених радова (без ПДВ): | F33: 9417.6 | H33: =+IF(F33>0," дин.","") -> дин.
A35: Укупна вредност извршених радова (са ПДВ): | F35: 11112.768 | H35: =+IF(F35>0," дин.","") -> дин.
A37: Вредност извршених радова по претходној ситуацији (без ПДВ): | H37: =+IF(F37>0," дин.","") -> 
A39: Вредност извршених радова по овој ситуацији (без ПДВ): | F39: =+F33-F37 -> 9417.6 | H39: =+IF(F39>0," дин.","") -> дин.
A43: Примљен аванс: | B43: =+F31*B44 -> 0 | C43: (са ПДВ)
A44: Правда се аванс: | C44: (са ПДВ) | F44: =+F39*B44*(1+C54) -> 0 | H44: =+IF(F44>0," дин.","") -> 
A45: Укупно оправдан аванс: | D45: =F35*B44 -> 0 | E45: (са ПДВ)
A46: Преостали аванс: | B46: =+B43-D45 -> 0 | C46: (са ПДВ)
A48: Одбија се (депозит, остало): | C48: (са ПДВ) | H48: =+IF(F48>0," дин.","") -> 
A52: Основица за обрачун пореза на додату вредност по овој ситуацији: | F52: =+F39-(F44+F48)/(1+C54) -> 9417.6 | H52: =+IF(F52>0," дин.","") -> дин.
A54: Порез на додату вредност: | C54: 0.18 | F54: =+F52*0.18 -> 1695.168 | H54: =+IF(F54>0," дин.","") -> дин.
A56: За наплату по овој ситуацији: | F56: =+F52+F54 -> 11112.768 | H56: =+IF(F56>0," дин.","") -> дин.
A59: =SlovimaPC($F$56) -> Словима: (једанаестхиљадастотинудванаест динара и 77/100)
A61: Тврдимо под материјалном, прекршајном и кривичном одговорношћу за квалитет извршених радова и да су радови приказани у овој ситуацији стварно изведени и обрачунати по уговорној документацији и грађевинској књизи.
A63: Одговорни извођач радова: | F63: Стручни надзор:
C64: (м.л.п.) | E64: (м.л.п.)
A67: Извршилац: | F67: Наручилац:
C68: (м.п.) | E68: (м.п.)
A69: (директор) | F69: (директор)
A72: РАДОВИ СУ ИЗВРШЕНИ И МОГУ СЕ ИСПЛАТИТИ
A73: НА ТЕРЕТ СРЕДСТАВА редовног одржавања
A74: система за одводњавање
D75: ТВРДИ И ОВЕРАВА
A76: ...........................2004. год. | D76: РУКОВОДИЛАЦ СЕКТОРА
D77: .................................................

Sheet Dinamika (hidden)
B2: DINAMIČKI PLAN NAPREDOVANJA RADOVA: PROJEKAT A
B4: Start(dan) 01.jul.07 | D4: 2007-07-01 | M4: Legenda
B5: Kraj(dan) 08.jul.07 | D5: 2007-07-08 | M5: Planirana aktivnost | S5: Resurs
B6: Rok(dan) 8 | D6: =(D5-D4+1) -> 8 | M6: Izvršena aktivnost
J7: =MIN(J10:J65000) -> 2007-07-01 | M7: =MAX(M10:M65000) -> 2007-07-08
B8: Opis pozicije | C8: Izv. (%) | D8: Trajanje (dana) | E8: Pred. akt. (broj reda) | F8: Indirekt | G8: Resursi | J8: START (datum) | M8: KRAJ (datum) | O8: 1 | P8: =D4 -> 2007-07-01 | Q8: =P8+sedm -> 
B10: 1. ПРИПРЕМНИ РАДОВИ | C10: 1 | D10: 1 | F10: =IF(E10="","D4","M"&E10) -> D4 | J10: 2007-07-01 | M10: 2007-07-03
B11: Обележавање трасе канала сагласно приложеном ситуационом плану и приложеним тачкама обележавања профила | C11: 1 | D11: 1 | F11: =IF(E11="","D4","M"&E11) -> D4 | J11: 2007-07-01 | M11: 2007-07-01
B12: Чишћење почетних 300 м трасе канала од вегетације и крупних предмета, транспорт и одлагање материјала на место које одреди надзорни орган | C12: 1 | D12: 2 | E12: 10 | F12: M10 | J12: 2007-07-02 | M12: 2007-07-03
F13: D4 | J13: 2007-07-01 | M13: 2007-07-01
B14: 2. ЗЕМЉАНИ РАДОВИ | C14: 1 | D14: 6 | F14: D4 | J14: 2007-07-02 | M14: 2007-07-07
B15: Ископ првих 300 м канала (од профила 22 до профила 14) рефулерним багером. У цену је урачунат и транспорт ископаног материјала у Дунав у свему према условима из техничке документације | C15: 1 | D15: 4 | E15: 11 | F15: M11 | J15: 2007-07-02 | M15: 2007-07-05
B16: Ископ канала малим пловним багером од профила 14 до профила1. У цену је урачунат и транспорт ископаног материјала у Дунав у свему према условима из техничке документације | C16: 0.55 | D16: 6 | E16: 11 | F16: M11 | J16: 2007-07-02 | M16: 2007-07-07
F17: D4 | J17: 2007-07-01 | M17: 2007-07-01
B18: 3. ЗАВРШНИ РАДОВИ | C18: 0.6 | D18: 7 | F18: D4 | J18: 2007-07-06 | M18: 2007-07-08
B19: Означавање коридора канала постављањем сталних дрвених стубова са обе стране канала симетрично у односу на осу канала. Стубове постављати на медјусобном растојању од 50 м. Растојање управно на осу канала минимум 15 м. Кота врха стубова је на коти 74,5 мнм | C19: 1 | D19: 1 | E19: 15 | F19: M15 | J19: 2007-07-06 | M19: 2007-07-06
B20: POZ | C20: 1 | D20: 1 | E20: 18 | F20: M18 | J20: 2007-07-08 | M20: 2007-07-08

Sheet GK_I.1.
B1: =VLOOKUP(D1,Burdura1,2,FALSE) -> -4105 | D1: Ukupna
B4: Градилиште: | C4: Gradilište | G4: Сектор: | H4: Sektor | J4: Објекат: | K4: Cevast propust Ø1000mm
K7: 8
B8: ОБРАЧУНСКИ ЛИСТ ГРАЂЕВИНСКЕ КЊИГЕ | J8: Лист број: | K8: 1
B10: Врста рада: | C10: ZEMLJANI RADOVI | H10: Грађ. Норма | J10: Обр. нацрт бр | K10: Поз. Предрачуна
H11: Шифра: | K11: I.1.
B12: Јединична цена (дин) | E12: 327 | G12: по | H12: m3 | J12: Мера: | K12: 28
B13: A= | D13: B= | G13: A+B= | J13: Месечно | K13: Укупно
I14: Пренето:
C15: Mašinski iskop zemlje za izradu propusta. Obračun po m3. (0.60+5.40)*0.5*1.60*6.00=
B22: Obračunava se po skici broj 1_I.1.
B23: (0.60m+5.40m)×0.5×1.60m×6.00m
H24: (0.60+5.40)*0.5*1.60*6.00 | I24: = | J24: =(0.6+5.4)*0.5*1.6*6 -> 28.8
H25: Obračunato u Pr Sit. broj 1 | I25: m3 | J25: 28.8 | K25: 28.8
J26: Više izvršeno 0.8m3
B27: Одговорни извођач радова | J27: Надзорни орган
B28: _______________ | J28: _____________
I60: За пренос: | K60: 28.8
B61: Јединична цена (дин) | E61: =E12 -> 327 | G61: по | H61: =H12 -> m3 | J61: Мера: | K61: =K12 -> 28
B62: A= | D62: B= | G62: A+B= | J62: Месечно | K62: Укупно
I63: Пренето: | K63: =K60 -> 28.8
B69: Obračunava se po skici broj 1_I.1.
B70: (3m+4m)×0.5×256= | H70: (3+4)*0.5*256 | I70: = | J70: =(3+4)*0.5*256 -> 896
I71: m3 | J71: 896 | K71: 924.8
B73: Одговорни извођач радова | J73: Надзорни орган
B74: _______________ | J74: _____________
I117: За пренос:

Sheet GK_I.2.a
B1: =VLOOKUP(D1,Burdura1,2,FALSE) -> -4105 | D1: Ukupna
B4: Градилиште: | C4: Gradilište | G4: Сектор: | H4: Sektor | J4: Објекат: | K4: Cevast propust Ø1000mm
K7: 10
B8: ОБРАЧУНСКИ ЛИСТ ГРАЂЕВИНСКЕ КЊИГЕ | J8: Лист број: | K8: 1
B10: Врста рада: | C10: ZEMLJANI RADOVI | H10: Грађ. Норма | J10: Обр. нацрт бр | K10: Поз. Предрачуна
H11: Шифра: | K11: I.2.a
B12: Јединична цена (дин) | E12: 444 | G12: по | H12: m3 | J12: Мера: | K12: 7
B13: A= | D13: B= | G13: A+B= | J13: Месечно | K13: Укупно
I14: Пренето:
C15: Ručni iskop u zemljištu 3-kategorije za podlogu ispod cevi i krilne zidove širine 0.60-1.00 m sa odbacivanjem zemlje najmanje 1.00 m od ivice kanala ili rova. Obračun po m3 otkopane zemlje. A. Na dubini od 0-2 m u suvom (1.90+1.00)*0.5*0.80*0.60*2*2+(2.10+1.05)*0.5*0.80*0.70*2*2+(1.35+1.20)*0.5*0.80*0.20*2*2=2.74+3.53+0.82=
I60: За пренос:
B61: Јединична цена (дин) | E61: =E12 -> 444 | G61: по | H61: =H12 -> m3 | J61: Мера: | K61: =K12 -> 7
B62: A= | D62: B= | G62: A+B= | J62: Месечно | K62: Укупно
I63: Пренето: | K63: =K60 -> 0
I117: За пренос:

Sheet GK_I.2.b
B1: =VLOOKUP(D1,Burdura1,2,FALSE) -> -4105 | D1: Ukupna
B4: Градилиште: | C4: Gradilište | G4: Сектор: | H4: Sektor | J4: Објекат: | K4: Cevast propust Ø1000mm
K7: 12
B8: ОБРАЧУНСКИ ЛИСТ ГРАЂЕВИНСКЕ КЊИГЕ | J8: Лист број: | K8: 1
B10: Врста рада: | C10: ZEMLJANI RADOVI | H10: Грађ. Норма | J10: Обр. нацрт бр | K10: Поз. Предрачуна
H11: Шифра: | K11: I.2.b
B12: Јединична цена (дин) | E12: 604 | G12: по | H12: m3 | J12: Мера: | K12: 4
B13: A= | D13: B= | G13: A+B= | J13: Месечно | K13: Укупно
I14: Пренето:
C15: Ručni iskop u zemljištu 3-kategorije za podlogu ispod cevi i krilne zidove širine 0.60-1.00 m sa odbacivanjem zemlje najmanje 1.00 m od ivice kanala ili rova. Obračun po m3 otkopane zemlje. B. Na dubini od 0-2 m u mokrom (1.00+1.30)*0.5*0.20*6.00+0.90*0.20*0.5*6.00*2+(1.75+1.30)*0.5*0.80*0.50*2*2= 1.38+1.08+2.44=
B22: (1.00m+1.30m)×0.5×0.20m×6.00m+0.90m×0.20m×0.5×6.00m×2+(1.75m+1.30m)×0.5×0.80m×0.50m×2×2=
H23: (1.00+1.30)*0.5*0.20*6.00+0.90*0.20*0.5*6.00*2+(1.75+1.30)*0.5*0.80*0.50*2*2 | I23: = | J23: =(1+1.3)*0.5*0.2*6+0.9*0.2*0.5*6*2+(1.75+1.3)*0.5*0.8*0.5*2*2 -> 4.9
I24: m3 | J24: 4.9 | K24: 4.9
B26: Одговорни извођач радова | J26: Надзорни орган
B27: _______________ | J27: _____________
I60: За пренос:
B61: Јединична цена (дин) | E61: =E12 -> 604 | G61: по | H61: =H12 -> m3 | J61: Мера: | K61: =K12 -> 4
B62: A= | D62: B= | G62: A+B= | J62: Месечно | K62: Укупно
I63: Пренето: | K63: =K60 -> 0
I117: За пренос:

Sheet GK_I.2.c
B1: =VLOOKUP(D1,Burdura1,2,FALSE) -> -4105 | D1: Ukupna
B4: Градилиште: | C4: Gradilište | G4: Сектор: | H4: Sektor | J4: Објекат: | K4: Cevast propust Ø1000mm
K7: 14
B8: ОБРАЧУНСКИ ЛИСТ ГРАЂЕВИНСКЕ КЊИГЕ | J8: Лист број: | K8: 1
B10: Врста рада: | C10: ZEMLJANI RADOVI | H10: Грађ. Норма | J10: Обр. нацрт бр | K10: Поз. Предрачуна
H11: Шифра: | K11: I.2.c
B12: Јединична цена (дин) | E12: 785 | G12: по | H12: m3 | J12: Мера: | K12: 2
B13: A= | D13: B= | G13: A+B= | J13: Месечно | K13: Укупно
I14: Пренето:
C15: Ručni iskop u zemljištu 3-kategorije za podlogu ispod cevi i krilne zidove širine 0.60-1.00 m sa odbacivanjem zemlje najmanje 1.00 m od ivice kanala ili rova. Obračun po m3 otkopane zemlje. C. Na dubini od 2-4 m u mokrom 2.50*0.50*0.50*2+1.00*0.20*5.00=1.25+1.00=
I60: За пренос:
B61: Јединична цена (дин) | E61: =E12 -> 785 | G61: по | H61: =H12 -> m3 | J61: Мера: | K61: =K12 -> 2
B62: A= | D62: B= | G62: A+B= | J62: Месечно | K62: Укупно
I63: Пренето: | K63: =K60 -> 0
I117: За пренос:

Sheet GK_I.3.
B1: =VLOOKUP(D1,Burdura1,2,FALSE) -> -4105 | D1: Ukupna
B4: Градилиште: | C4: Gradilište | G4: Сектор: | H4: Sektor | J4: Објекат: | K4: Cevast propust Ø1000mm
K7: 16
B8: ОБРАЧУНСКИ ЛИСТ ГРАЂЕВИНСКЕ КЊИГЕ | J8: Лист број: | K8: 1
B10: Врста рада: | C10: ZEMLJANI RADOVI | H10: Грађ. Норма | J10: Обр. нацрт бр | K10: Поз. Предрачуна
H11: Шифра: | K11: I.3.
B12: Јединична цена (дин) | E12: 668 | G12: по | H12: m3 | J12: Мера: | K12: 5
B13: A= | D13: B= | G13: A+B= | J13: Месечно | K13: Укупно
I14: Пренето:
C15: Ručni iskop u širokom otkopu za izradu tucaničkog kolovoznog zastora u zemljištu 3-kategorije. Obračun po m3 otkopane zemlje. (1.00+1.60)*0.5*0.40*5.30*2=
I60: За пренос:
B61: Јединична цена (дин) | E61: =E12 -> 668 | G61: по | H61: =H12 -> m3 | J61: Мера: | K61: =K12 -> 5
B62: A= | D62: B= | G62: A+B= | J62: Месечно | K62: Укупно
I63: Пренето: | K63: =K60 -> 0
I117: За пренос:

Sheet GK_I.5.
B1: =VLOOKUP(D1,Burdura1,2,FALSE) -> -4105 | D1: Ukupna
B4: Градилиште: | C4: Gradilište | G4: Сектор: | H4: Sektor | J4: Објекат: | K4: Cevast propust Ø1000mm
K7: 20
B8: ОБРАЧУНСКИ ЛИСТ ГРАЂЕВИНСКЕ КЊИГЕ | J8: Лист број: | K8: 1
B10: Врста рада: | C10: ZEMLJANI RADOVI | H10: Грађ. Норма | J10: Обр. нацрт бр | K10: Поз. Предрачуна
H11: Шифра: | K11: I.5.
B12: Јединична цена (дин) | E12: 288 | G12: по | H12: m3 | J12: Мера: | K12: 25
B13: A= | D13: B= | G13: A+B= | J13: Месечно | K13: Укупно
I14: Пренето:
C15: Nasipanje sa nabijanjem materijalom iz iskopa prostor oko i iznad cevi. oko krilnih zidova i nasipanje prilaznih rampi. Obračun po m3. (1.75+1.20)*0.5*0.45*0.70*2*2+(2.10+1.05)*0.5*0.45*0.70*2*2+(1.90+1.00)*0.5*0.45*0.60*2*2+(1.80+4.80)* 0.5*1.10* 5.30- 0.565*5.30+0.20*4.00*0.5*5.30*2 = 1.86+1.98+1.57+19.24-2.99+4
B22: Obračunava se po skici broj 1_I.5.
B23: 14.36+45.32 | H23: 14.36+45.32 | I23: = | J23: =14.36+45.32 -> 59.68
I24: m3 | J24: 59.68 | K24: 59.68
I60: За пренос:
B61: Јединична цена (дин) | E61: =E12 -> 288 | G61: по | H61: =H12 -> m3 | J61: Мера: | K61: =K12 -> 25
B62: A= | D62: B= | G62: A+B= | J62: Месечно | K62: Укупно
I63: Пренето: | K63: =K60 -> 0
I117: За пренос:

Sheet GK_I.6.
B1: =VLOOKUP(D1,Burdura1,2,FALSE) -> -4105 | D1: Ukupna
B4: Градилиште: | C4: Gradilište | G4: Сектор: | H4: Sektor | J4: Објекат: | K4: Cevast propust Ø1000mm
K7: 22
B8: ОБРАЧУНСКИ ЛИСТ ГРАЂЕВИНСКЕ КЊИГЕ | J8: Лист број: | K8: 1
B10: Врста рада: | C10: ZEMLJANI RADOVI | H10: Грађ. Норма | J10: Обр. нацрт бр | K10: Поз. Предрачуна
H11: Шифра: | K11: I.6.
B12: Јединична цена (дин) | E12: 301 | G12: по | H12: m3 | J12: Мера: | K12: 10
B13: A= | D13: B= | G13: A+B= | J13: Месечно | K13: Укупно
I14: Пренето:
C15: Mašinska izrada pregrade (zagata) od nabijene zemlje u profilu kanala. Obračun po m3. (0.60+3.60)*0.5*1.00*2.50*2=10.50
I60: За пренос:
B61: Јединична цена (дин) | E61: =E12 -> 301 | G61: по | H61: =H12 -> m3 | J61: Мера: | K61: =K12 -> 10
B62: A= | D62: B= | G62: A+B= | J62: Месечно | K62: Укупно
I63: Пренето: | K63: =K60 -> 0
I117: За пренос:

Sheet GK_I.7.
B1: =VLOOKUP(D1,Burdura1,2,FALSE) -> -4105 | D1: Ukupna
B4: Градилиште: | C4: Gradilište | G4: Сектор: | H4: Sektor | J4: Објекат: | K4: Cevast propust Ø1000mm
K7: 24
B8: ОБРАЧУНСКИ ЛИСТ ГРАЂЕВИНСКЕ КЊИГЕ | J8: Лист број: | K8: 1
B10: Врста рада: | C10: ZEMLJANI RADOVI | H10: Грађ. Норма | J10: Обр. нацрт бр | K10: Поз. Предрачуна
H11: Шифра: | K11: I.7.
B12: Јединична цена (дин) | E12: 325 | G12: по | H12: m3 | J12: Мера: | K12: 10
B13: A= | D13: B= | G13: A+B= | J13: Месечно | K13: Укупно
I14: Пренето:
C15: Mašinsko uklanjanje pregrade (zagata) od nabijene zemlje iz profilu kanala. Obračun po m3. (0.60+3.60)*0.5*1.00*2.50*2=10.50
I60: За пренос:
B61: Јединична цена (дин) | E61: =E12 -> 325 | G61: по | H61: =H12 -> m3 | J61: Мера: | K61: =K12 -> 10
B62: A= | D62: B= | G62: A+B= | J62: Месечно | K62: Укупно
I63: Пренето: | K63: =K60 -> 0
I117: За пренос:

Sheet GK_II.8.
B1: =VLOOKUP(D1,Burdura1,2,FALSE) -> -4105 | D1: Ukupna
B4: Градилиште: | C4: Gradilište | G4: Сектор: | H4: Sektor | J4: Објекат: | K4: Cevast propust Ø1000mm
K7: 28
B8: ОБРАЧУНСКИ ЛИСТ ГРАЂЕВИНСКЕ КЊИГЕ | J8: Лист број: | K8: 1
B10: Врста рада: | C10: TESARSKI RADOVI | H10: Грађ. Норма | J10: Обр. нацрт бр | K10: Поз. Предрачуна
H11: Шифра: | K11: II.8.
B12: Јединична цена (дин) | E12: 1205 | G12: по | H12: m2 | J12: Мера: | K12: 45
B13: A= | D13: B= | G13: A+B= | J13: Месечно | K13: Укупно
I14: Пренето:
C15: Izrada. montaža i demontaža dvostrane oplate za krilne zidove. Obračun po m2. (1.00+6.00)*0.5*2.00*2+4.50*0.70*2+6.30*0.70*2+ 8.00*0.80*2+8.00*0.20*2+0.25*0.35*4= 14.00+6.30+8.82+12.80+3.20+0.35=
I60: За пренос:
B61: Јединична цена (дин) | E61: =E12 -> 1205 | G61: по | H61: =H12 -> m2 | J61: Мера: | K61: =K12 -> 45
B62: A= | D62: B= | G62: A+B= | J62: Месечно | K62: Укупно
I63: Пренето: | K63: =K60 -> 0
I117: За пренос:

Sheet GK_III.9.
B1: =VLOOKUP(D1,Burdura1,2,FALSE) -> -4105 | D1: Ukupna
B4: Градилиште: | C4: Gradilište | G4: Сектор: | H4: Sektor | J4: Објекат: | K4: Cevast propust Ø1000mm
K7: 32
B8: ОБРАЧУНСКИ ЛИСТ ГРАЂЕВИНСКЕ КЊИГЕ | J8: Лист број: | K8: 1
B10: Врста рада: | C10: BETONSKI RADOVI | H10: Грађ. Норма | J10: Обр. нацрт бр | K10: Поз. Предрачуна
H11: Шифра: | K11: III.9.
B12: Јединична цена (дин) | E12: 8403 | G12: по | H12: m3 | J12: Мера: | K12: 1
B13: A= | D13: B= | G13: A+B= | J13: Месечно | K13: Укупно
I14: Пренето:
C15: Nearmiran beton MB-10 podloga za polaganje cevi. Obračun po m3. 1.00*0.20*5.00=
B22: Obračunava se po skici broj 1_III.9.
B23: 1.00m×0.20m×5.00m= | H23: 1.00*0.20*5.00 | I23: = | J23: =1*0.2*5 -> 1
I24: m3 | J24: 1 | K24: 1
B26: Одговорни извођач радова | J26: Надзорни орган
B27: _______________ | J27: _____________
I60: За пренос:
B61: Јединична цена (дин) | E61: =E12 -> 8403 | G61: по | H61: =H12 -> m3 | J61: Мера: | K61: =K12 -> 1
B62: A= | D62: B= | G62: A+B= | J62: Месечно | K62: Укупно
I63: Пренето: | K63: =K60 -> 0
I117: За пренос:

Sheet GK_III.10.
B1: =VLOOKUP(D1,Burdura1,2,FALSE) -> -4105 | D1: Ukupna
B4: Градилиште: | C4: Gradilište | G4: Сектор: | H4: Sektor | J4: Објекат: | K4: Cevast propust Ø1000mm
K7: 34
B8: ОБРАЧУНСКИ ЛИСТ ГРАЂЕВИНСКЕ КЊИГЕ | J8: Лист број: | K8: 1
B10: Врста рада: | C10: BETONSKI RADOVI | H10: Грађ. Норма | J10: Обр. нацрт бр | K10: Поз. Предрачуна
H11: Шифра: | K11: III.10.
B12: Јединична цена (дин) | E12: 9628 | G12: по | H12: m3 | J12: Мера: | K12: 10
B13: A= | D13: B= | G13: A+B= | J13: Месечно | K13: Укупно
I14: Пренето:
C15: Armiran beton MB-30 za izradu krilnih zidova obračun po m3. 2.50*0.50*0.50*2+4.50*0.35*0.70*2+6.30*0.35*0.70*2+ 8.00*0.35*0.80*2-1.13*0.35*2=1.25+2.20+3.09+4.48-0.79=
I60: За пренос:
B61: Јединична цена (дин) | E61: =E12 -> 9628 | G61: по | H61: =H12 -> m3 | J61: Мера: | K61: =K12 -> 10
B62: A= | D62: B= | G62: A+B= | J62: Месечно | K62: Укупно
I63: Пренето: | K63: =K60 -> 0
I117: За пренос:

Sheet GK_III.11.
B1: =VLOOKUP(D1,Burdura1,2,FALSE) -> -4105 | D1: Ukupna
B4: Градилиште: | C4: Gradilište | G4: Сектор: | H4: Sektor | J4: Објекат: | K4: Cevast propust Ø1000mm
K7: 36
B8: ОБРАЧУНСКИ ЛИСТ ГРАЂЕВИНСКЕ КЊИГЕ | J8: Лист број: | K8: 1
B10: Врста рада: | C10: BETONSKI RADOVI | H10: Грађ. Норма | J10: Обр. нацрт бр | K10: Поз. Предрачуна
H11: Шифра: | K11: III.11.
B12: Јединична цена (дин) | E12: 14176 | G12: по | H12: m1 | J12: Мера: | K12: 6
B13: A= | D13: B= | G13: A+B= | J13: Месечно | K13: Укупно
I14: Пренето:
C15: Nabavka. transport i montaža armirano betonskih cevi o1000 mm sa zalivanjem spojnica masom za zalivanje ili cementnim malterom 1:3.
I60: За пренос:
B61: Јединична цена (дин) | E61: =E12 -> 14176 | G61: по | H61: =H12 -> m1 | J61: Мера: | K61: =K12 -> 6
B62: A= | D62: B= | G62: A+B= | J62: Месечно | K62: Укупно
I63: Пренето: | K63: =K60 -> 0
I117: За пренос:

Sheet GK_IV.12.
B1: =VLOOKUP(D1,Burdura1,2,FALSE) -> -4105 | D1: Ukupna
B4: Градилиште: | C4: Gradilište | G4: Сектор: | H4: Sektor | J4: Објекат: | K4: Cevast propust Ø1000mm
K7: 40
B8: ОБРАЧУНСКИ ЛИСТ ГРАЂЕВИНСКЕ КЊИГЕ | J8: Лист број: | K8: 1
B10: Врста рада: | C10: ARMIRAČKI RADOVI | H10: Грађ. Норма | J10: Обр. нацрт бр | K10: Поз. Предрачуна
H11: Шифра: | K11: IV.12.
B12: Јединична цена (дин) | E12: 97 | G12: по | H12: kg | J12: Мера: | K12: 65
B13: A= | D13: B= | G13: A+B= | J13: Месечно | K13: Укупно
I14: Пренето:
C15: Nabavka. transport. sečenje. ispravljanje. savijanje. postavljane i vezivanje armature prema planu i specifikaciji armature iz projekta. Obračun po kg.
I60: За пренос:
B61: Јединична цена (дин) | E61: =E12 -> 97 | G61: по | H61: =H12 -> kg | J61: Мера: | K61: =K12 -> 65
B62: A= | D62: B= | G62: A+B= | J62: Месечно | K62: Укупно
I63: Пренето: | K63: =K60 -> 0
I117: За пренос:

Sheet GK_IV.13.
B1: =VLOOKUP(D1,Burdura1,2,FALSE) -> -4105 | D1: Ukupna
B4: Градилиште: | C4: Gradilište | G4: Сектор: | H4: Sektor | J4: Објекат: | K4: Cevast propust Ø1000mm
K7: 42
B8: ОБРАЧУНСКИ ЛИСТ ГРАЂЕВИНСКЕ КЊИГЕ | J8: Лист број: | K8: 1
B10: Врста рада: | C10: ARMIRAČKI RADOVI | H10: Грађ. Норма | J10: Обр. нацрт бр | K10: Поз. Предрачуна
H11: Шифра: | K11: IV.13.
B12: Јединична цена (дин) | E12: 111 | G12: по | H12: kg | J12: Мера: | K12: 192
B13: A= | D13: B= | G13: A+B= | J13: Месечно | K13: Укупно
I14: Пренето:
C15: Nabavka. transport. sečenje. postavljanje i vezivanje mrežaste armature Q335 Ø8/Ø8 mm prema planu i specifikaciji armature iz projekta. Obračun po kg.
I60: За пренос:
B61: Јединична цена (дин) | E61: =E12 -> 111 | G61: по | H61: =H12 -> kg | J61: Мера: | K61: =K12 -> 192
B62: A= | D62: B= | G62: A+B= | J62: Месечно | K62: Укупно
I63: Пренето: | K63: =K60 -> 0
I117: За пренос:

Sheet GK_V.14.
B1: =VLOOKUP(D1,Burdura1,2,FALSE) -> -4105 | D1: Ukupna
B4: Градилиште: | C4: Gradilište | G4: Сектор: | H4: Sektor | J4: Објекат: | K4: Cevast propust Ø1000mm
K7: 46
B8: ОБРАЧУНСКИ ЛИСТ ГРАЂЕВИНСКЕ КЊИГЕ | J8: Лист број: | K8: 1
B10: Врста рада: | C10: RADOVI OD KAMENA | H10: Грађ. Норма | J10: Обр. нацрт бр | K10: Поз. Предрачуна
H11: Шифра: | K11: V.14.
B12: Јединична цена (дин) | E12: 1642 | G12: по | H12: m2 | J12: Мера: | K12: 45
B13: A= | D13: B= | G13: A+B= | J13: Месечно | K13: Укупно
I14: Пренето:
C15: Izrada tucaničkog kolovoza ( zastora) debljine 25 cm na podlozi od šljunka debljine 15 cm. Obračun po m2. 8.50 * 5.30 =
I60: За пренос:
B61: Јединична цена (дин) | E61: =E12 -> 1642 | G61: по | H61: =H12 -> m2 | J61: Мера: | K61: =K12 -> 45
B62: A= | D62: B= | G62: A+B= | J62: Месечно | K62: Укупно
I63: Пренето: | K63: =K60 -> 0
I117: За пренос:

Sheet GK_VI.15.
B1: =VLOOKUP(D1,Burdura1,2,FALSE) -> -4105 | D1: Ukupna
B4: Градилиште: | C4: Gradilište | G4: Сектор: | H4: Sektor | J4: Објекат: | K4: Cevast propust Ø1000mm
K7: 50
B8: ОБРАЧУНСКИ ЛИСТ ГРАЂЕВИНСКЕ КЊИГЕ | J8: Лист број: | K8: 1
B10: Врста рада: | C10: OSTALI RADOVI | H10: Грађ. Норма | J10: Обр. нацрт бр | K10: Поз. Предрачуна
H11: Шифра: | K11: VI.15.
B12: Јединична цена (дин) | E12: 1575 | G12: по | H12: čas | J12: Мера: | K12: 16
B13: A= | D13: B= | G13: A+B= | J13: Месечно | K13: Укупно
I14: Пренето:
C15: Crpljenje vode u toku izvođenja radova motornom pumpom. Obračun po času. 2 dana * 8 čas =
I60: За пренос:
B61: Јединична цена (дин) | E61: =E12 -> 1575 | G61: по | H61: =H12 -> čas | J61: Мера: | K61: =K12 -> 16
B62: A= | D62: B= | G62: A+B= | J62: Месечно | K62: Укупно
I63: Пренето: | K63: =K60 -> 0
I117: За пренос:

Sheet KNJIGA (hidden)
B1: =+VLOOKUP(D1,Burdura1,2,FALSE) -> -4105 | D1: Ukupna
B4: Градилиште: | G4: Сектор: | J4: Објекат:
B8: ОБРАЧУНСКИ ЛИСТ ГРАЂЕВИНСКЕ КЊИГЕ | J8: Лист број: | K8: 1
B10: Врста рада: | H10: Грађ. Норма | J10: Обр. нацрт бр | K10: Поз. Предрачуна
H11: Шифра:
B12: Јединична цена (дин) | G12: по | J12: Мера:
B13: A= | D13: B= | G13: A+B= | J13: Месечно | K13: Укупно
I14: Пренето:
I60: За пренос:
B61: Јединична цена (дин) | G61: по | J61: Мера:
B62: A= | D62: B= | G62: A+B= | J62: Месечно | K62: Укупно
I63: Пренето:
I117: За пренос:

Sheet INFO (hidden)
C4: OVO JE APLIKACIJA ZA IZRADU GRAĐEVINSKE KNJIGE NAMENJENA IZVOĐAČIMA GRAĐEVINSKIH RADOVA.
C5: RADOVA ZA BRZU I USPEŠNU IZRADU GRADILIŠNE DOKUMENTACIJE.
C7: NA POČETKU PRIPREMITE IZVOR PODATAKA - PONUDU, KOJU TREBA OBRADITI NA NAČIN PRIKAZAN U
C8: LISTU PONUDA. KADA STE PRIPREMILI PONUDU AKTIVIRAJTE DUGME "IMENUJ BAZU". SADA MOŽETE
C9: POČETI SA IZRADOM LISTOVA GRAĐEVINSKE KNJIGE. KLIKOM NA DUGME "KNJIGA" AKTIVIRAĆE SE LIST
C10: KNJIGA.
C11: SELEKTUJTE ĆELIJU "C15" I AKTIVIRAJTE STRELICU SA DESNE STRANE. POJAVIĆE SE LISTA SA
C12: POZICIJAMA IZ PONUDE. AKO IZABERETE POZICIJU IZ LISTE, SVA POLJA U NASLOVU BIĆE POPUNJENA
C13: POTREBNIM PODACIMA ZA ODGOVARAJUĆU POZICIJU.
C15: SADA MOŽETE UPISIVATI PODATKE O IZVRŠENIM RADOVIMA - DOKAZNICU.
C16: TEKSTUALNI (OPISNI) DEO DOKAZNICE UPISUJTE U KOLONU "B:B", A NUMERIČKI (RAČUN) UPISUJTE U
C17: KOLONU "H-H" POČEV OD REDA 20. PO UPISU DOKAZNICE AKTIVIRAJTE DUGME "IZRAČUNAJ" I BIĆE
C18: IZVRŠEN PRORAČUN DOKAZNICE, UPISAN U KOLONU "J-J" I SUMIRAN U KOLONU "K-K". BIĆE OZNAČENA
C19: ĆELIJA ZA POTPIS ODGOVORNOG IZVOĐAČA RADOVA. AKTIVIRAJTE DUGME "POTPIS".
C20: AKTIVIRANJEM P.PROGRAMA "KOPIJA" IZVRŠIĆE SE KOPIRANJE LISTA "KNJIGA" SA OZNAKOM
C21: "GK_(oznaka pozicije). U OVOM LISTU MOŽETE VRŠITI DOPUNU DOKAZNICE, A LIST "KNJIGA" KORISTITI ZA
C22: OBRADU DRUGIH POZICIJA.
C23: ŠTAMPANJE LISTA MOŽE SE VRŠITI PARCIJALNO. NA PRIMER, MOŽE SE ODŠTAMPATI DOKAZNICA ZA
C24: MESEC JANUAR, ZATIM NA ISTOM LISTU (POSLE OVERE LISTA) FEBRUAR... I TAKO REDOM.

Sheet Ponuda (hidden)
C1: CEVAST PROPUS Ø1000 NA KANALU K12, KM 2+350 | I1: Gradilište | K1: Burdura
G2: =IF(ISNUMBER(F2),F2*E2,0) -> 0 | I2: Sektor
B3: sit | I3: Cevast propust Ø1000mm | K3: Ukupna | L3: -4105
B4: Р.Бр. | C4: Опис позиције | D4: Ј.м. | E4: Ј.цена | F4: Количина | G4: Износ | H4: POZ | I4: Врста рада | K4: Parcijalna | L4: -4142
B5: *
B6: *
A7: n | C7: I. ZEMLJANI RADOVI
B8: 1. | C8: Mašinski iskop zemlje za izradu propusta. Obračun po m3. (0.60+5.40)*0.5*1.60*6.00= | D8: m3 | E8: 327 | F8: 28 | G8: =E8*F8 -> 9156 | H8: I.1. | I8: ZEMLJANI RADOVI
E9: 0 | F9: 0
B10: 2.a | C10: Ručni iskop u zemljištu 3-kategorije za podlogu ispod cevi i krilne zidove širine 0.60-1.00 m sa odbacivanjem zemlje najmanje 1.00 m od ivice kanala ili rova. Obračun po m3 otkopane zemlje. A. Na dubini od 0-2 m u suvom (1.90+1.00)*0.5*0.80*0.60*2*2+(2.10+1.05)*0.5*0.80*0.70*2*2+(1.35+1.20)*0.5*0.80*0.20*2*2=2.74+3.53+0.82= | D10: m3 | E10: 444 | F10: 7 | G10: =E10*F10 -> 3108 | H10: I.2.a | I10: ZEMLJANI RADOVI
E11: 0 | F11: 0
B12: 2.b | C12: Ručni iskop u zemljištu 3-kategorije za podlogu ispod cevi i krilne zidove širine 0.60-1.00 m sa odbacivanjem zemlje najmanje 1.00 m od ivice kanala ili rova. Obračun po m3 otkopane zemlje. B. Na dubini od 0-2 m u mokrom (1.00+1.30)*0.5*0.20*6.00+0.90*0.20*0.5*6.00*2+(1.75+1.30)*0.5*0.80*0.50*2*2= 1.38+1.08+2.44= | D12: m3 | E12: 604 | F12: 4 | G12: =E12*F12 -> 2416 | H12: I.2.b | I12: ZEMLJANI RADOVI
E13: 0 | F13: 0
B14: 2.c | C14: Ručni iskop u zemljištu 3-kategorije za podlogu ispod cevi i krilne zidove širine 0.60-1.00 m sa odbacivanjem zemlje najmanje 1.00 m od ivice kanala ili rova. Obračun po m3 otkopane zemlje. C. Na dubini od 2-4 m u mokrom 2.50*0.50*0.50*2+1.00*0.20*5.00=1.25+1.00= | D14: m3 | E14: 785 | F14: 2 | G14: =E14*F14 -> 1570 | H14: I.2.c | I14: ZEMLJANI RADOVI
E15: 0 | F15: 0
B16: 3. | C16: Ručni iskop u širokom otkopu za izradu tucaničkog kolovoznog zastora u zemljištu 3-kategorije. Obračun po m3 otkopane zemlje. (1.00+1.60)*0.5*0.40*5.30*2= | D16: m3 | E16: 668 | F16: 5 | G16: =E16*F16 -> 3340 | H16: I.3. | I16: ZEMLJANI RADOVI
E17: 0 | F17: 0
B18: 4. | C18: Nasipanje sa nabijanjem šljunkom prostor do polovine visine cevi. Obračun po m3. (1.00+1.80)*0.5*0.50*5.30-0.565*5.30=3.71-2.99= | D18: m3 | E18: 3846 | F18: 0 | I18: ZEMLJANI RADOVI
E19: 0 | F19: 0
B20: 5. | C20: Nasipanje sa nabijanjem materijalom iz iskopa prostor oko i iznad cevi. oko krilnih zidova i nasipanje prilaznih rampi. Obračun po m3. (1.75+1.20)*0.5*0.45*0.70*2*2+(2.10+1.05)*0.5*0.45*0.70*2*2+(1.90+1.00)*0.5*0.45*0.60*2*2+(1.80+4.80)* 0.5*1.10* 5.30- 0.565*5.30+0.20*4.00*0.5*5.30*2 = 1.86+1.98+1.57+19.24-2.99+4 | D20: m3 | E20: 288 | F20: 25 | G20: =E20*F20 -> 7200 | H20: I.5. | I20: ZEMLJANI RADOVI
E21: 0 | F21: 0
B22: 6. | C22: Mašinska izrada pregrade (zagata) od nabijene zemlje u profilu kanala. Obračun po m3. (0.60+3.60)*0.5*1.00*2.50*2=10.50 | D22: m3 | E22: 301 | F22: 10 | G22: =E22*F22 -> 3010 | H22: I.6. | I22: ZEMLJANI RADOVI
E23: 0 | F23: 0
B24: 7. | C24: Mašinsko uklanjanje pregrade (zagata) od nabijene zemlje iz profilu kanala. Obračun po m3. (0.60+3.60)*0.5*1.00*2.50*2=10.50 | D24: m3 | E24: 325 | F24: 10 | G24: =E24*F24 -> 3250 | H24: I.7. | I24: ZEMLJANI RADOVI
A25: n | C25: I. SVEGA ZEMLJNANI RADOVI | D25: din | E25: 0 | F25: 0 | G25: =SUM(G8:G24) -> 33050
E26: 0 | F26: 0
A27: n | C27: II. TESARSKI RADOVI | E27: 0 | F27: 0
B28: 8. | C28: Izrada. montaža i demontaža dvostrane oplate za krilne zidove. Obračun po m2. (1.00+6.00)*0.5*2.00*2+4.50*0.70*2+6.30*0.70*2+ 8.00*0.80*2+8.00*0.20*2+0.25*0.35*4= 14.00+6.30+8.82+12.80+3.20+0.35= | D28: m2 | E28: 1205 | F28: 45 | G28: =E28*F28 -> 54225 | H28: II.8. | I28: TESARSKI RADOVI
A29: n | C29: II. SVEGA TESARSKI RADOVI | D29: din | E29: 0 | F29: 0 | G29: =SUM(G28) -> 54225
E30: 0 | F30: 0
A31: n | C31: III. BETONSKI RADOVI | E31: 0 | F31: 0
B32: 9. | C32: Nearmiran beton MB-10 podloga za polaganje cevi. Obračun po m3. 1.00*0.20*5.00= | D32: m3 | E32: 8403 | F32: 1 | G32: =E32*F32 -> 8403 | H32: III.9. | I32: BETONSKI RADOVI
E33: 0 | F33: 0
B34: 10. | C34: Armiran beton MB-30 za izradu krilnih zidova obračun po m3. 2.50*0.50*0.50*2+4.50*0.35*0.70*2+6.30*0.35*0.70*2+ 8.00*0.35*0.80*2-1.13*0.35*2=1.25+2.20+3.09+4.48-0.79= | D34: m3 | E34: 9628 | F34: 10 | G34: =E34*F34 -> 96280 | H34: III.10. | I34: BETONSKI RADOVI
E35: 0 | F35: 0
B36: 11. | C36: Nabavka. transport i montaža armirano betonskih cevi Ø1000 mm sa zalivanjem spojnica masom za zalivanje ili cementnim malterom 1:3. | D36: m1 | E36: 14176 | F36: 6 | G36: =E36*F36 -> 85056 | H36: III.11. | I36: BETONSKI RADOVI
A37: n | C37: III. SVEGA BETONSKI RADOVI | D37: din | E37: 0 | F37: 0 | G37: =SUM(G32:G36) -> 189739
E38: 0 | F38: 0
A39: n | C39: IV. ARMIRAČKI RADOVI | E39: 0 | F39: 0
B40: 12. | C40: Nabavka. transport. sečenje. ispravljanje. savijanje. postavljane i vezivanje armature prema planu i specifikaciji armature iz projekta. Obračun po kg. | D40: kg | E40: 97 | F40: 65 | G40: =E40*F40 -> 6305 | H40: IV.12. | I40: ARMIRAČKI RADOVI
E41: 0 | F41: 0
B42: 13. | C42: Nabavka. transport. sečenje. postavljanje i vezivanje mrežaste armature Q335 Ø8/Ø8 mm prema planu i specifikaciji armature iz projekta. Obračun po kg. | D42: kg | E42: 111 | F42: 192 | G42: =E42*F42 -> 21312 | H42: IV.13. | I42: ARMIRAČKI RADOVI
A43: n | C43: IV. SVEGA ARMIRAČKI RADOVI | D43: din | E43: 0 | F43: 0 | G43: =SUM(G40:G42) -> 27617
E44: 0 | F44: 0
A45: n | C45: V. RADOVI OD KAMENA | E45: 0 | F45: 0
B46: 14. | C46: Izrada tucaničkog kolovoza ( zastora) debljine 25 cm na podlozi od šljunka debljine 15 cm. Obračun po m2. 8.50 * 5.30 = | D46: m2 | E46: 1642 | F46: 45 | G46: =E46*F46 -> 73890 | H46: V.14. | I46: RADOVI OD KAMENA
A47: n | C47: V. SVEGA RADOVI OD KAMENA | D47: din | E47: 0 | F47: 0 | G47: =SUM(G46) -> 73890
E48: 0 | F48: 0
A49: n | C49: VI. OSTALI RADOVI | E49: 0 | F49: 0
B50: 15. | C50: Crpljenje vode u toku izvođenja radova motornom pumpom. Obračun po času. 2 dana * 8 čas = | D50: čas | E50: 1575 | F50: 16 | G50: =E50*F50 -> 25200 | H50: VI.15. | I50: OSTALI RADOVI
A51: n | C51: VI. SVEGA OSTALI RADOVI | D51: din | G51: =SUM(G50:G50) -> 25200
A53: n | C53: R E K A P I T U L A C I J A
A56: n | C56: I. ZEMLJANI RADOVI | D56: din | G56: =G25 -> 33050
A57: n | C57: II. TESARSKI RADOVI | D57: din | G57: =G29 -> 54225
A58: n | C58: III. BETONSKI RADOVI | D58: din | G58: =G37 -> 189739
A59: n | C59: IV. ARMIRAČKI RADOVI | D59: din | G59: =G43 -> 27617
A60: n | C60: V. RADOVI OD KAMENA | D60: din | G60: =G47 -> 73890
A61: n | C61: VI. OSTALI RADOVI | D61: din | G61: =G51 -> 25200
A62: n | C62: UKUPNO | D62: din | G62: =SUM(G56:G61) -> 403721
C63: PDV 18% | D63: din | G63: =G62*0.18 -> 72669.78
A64: n | C64: UKUPNO sa PDV | D64: din | G64: =SUM(G62:G63) -> 476390.78
